bitfinex/quotes_ETHUSD_20251012
["timestamp","ask_amount","ask_price","bid_price","bid_amount"]
[1760260166230,7.1848304,3818.5,3818.4,0.00200001]
[1760260169356,3.71880147,3818.5,3818.4,0.00200001]
[1760260169550,0.4442,3818.5,3818.4,0.00200001]
[1760260171153,4.98302938,3818.5,3818.4,0.00200001]
[1760260172424,2.9978,3818.5,3817.6,2.46]
[1760260172620,2.61911461,3818.1,3817.6,2.46]
[1760260172920,0.2336,3817.7,3817.6,2.46]
[1760260173119,0.6768,3817.7,3817.6,2.46]
[1760260173521,3.29617815,3817.7,3817.6,2.46]
[1760260173755,5.21617815,3817.7,3817.6,2.46]
[1760260173972,5.99972014,3817.7,3817.6,2.46]
[1760260174559,6.63332014,3817.7,3817.6,2.46]
[1760260178134,6.63332014,3817.7,3817.6,1e-08]
[1760260178329,2.61958401,3817.4,3817.3,1e-08]
[1760260178634,5.17393907,3816.3,3816.2,1.0931]
[1760260178835,5.61713907,3816.3,3816.2,0.6181]
[1760260179073,6.44087341,3816.3,3816.2,0.1431]
[1760260179260,7.22952005,3816.3,3816.2,0.0232]
[1760260179645,7.22952005,3816.3,3816.2,1e-08]
[1760260179834,4.54040773,3816.2,3816.1,1e-08]
[1760260180034,5.17400773,3816.2,3816.1,1e-08]
[1760260180313,6.08031615,3816.2,3813.7,0.4684]
[1760260180512,1.3043,3816.1,3814.0,2.62191422]
[1760260180816,1.92,3814.9,3813.8,14.5]
[1760260180998,2.3571,3815.0,3813.9,2.62198799]
[1760260181315,0.6336,3815.9,3813.8,17.12204213]
[1760260181524,1.92,3816.0,3813.9,1.71220421]
[1760260181525,2.62149432,3814.7,3813.9,1.71220421]
[1760260181695,0.4371,3814.6,3813.9,1.71220421]
[1760260183807,0.4371,3814.6,3813.9,4.33417373]
[1760260184216,0.4371,3814.6,3813.9,1.71220421]
[1760260184407,0.4371,3814.6,3813.9,4.33417317]
[1760260184604,0.4371,3814.6,3814.0,2.1458278]
[1760260184783,0.4371,3814.6,3814.0,4.76772701]
[1760260184983,0.4371,3814.6,3814.1,2.62183994]
[1760260185182,0.4371,3814.6,3814.0,2.1458278]
[1760260185425,1.92,3814.8,3814.0,2.1458278]
[1760260185643,0.4371,3814.8,3814.0,2.1458278]
[1760260186118,0.4371,3814.8,3814.1,2.62184811]
[1760260186289,0.51398315,3817.4,3814.2,2.62178115]
[1760260186290,1.92,3815.2,3814.2,2.62178115]
[1760260186503,1.92,3815.2,3814.1,2.35277212]
[1760260186701,4.54090234,3815.5,3814.5,2.62152381]
[1760260186900,1.92,3815.5,3814.6,2.62147978]
[1760260187116,0.4371,3815.6,3814.7,2.62140866]
[1760260187346,0.4371,3815.6,3814.7,0.52429842]
[1760260187548,0.4371,3815.6,3814.8,2.62136291]
[1760260187846,0.4371,3815.6,3814.8,2.62134585]
[1760260188049,0.4371,3815.6,3814.8,2.62133292]
[1760260188215,0.4371,3815.6,3814.7,2.62141895]
[1760260188421,0.1304,3814.8,3814.7,2.62141895]
[1760260188734,0.1304,3814.8,3814.7,3.08951895]
[1760260188932,0.1304,3814.8,3814.7,17.58951895]
[1760260189115,0.1304,3814.8,3814.7,19.61062741]
[1760260189314,0.1304,3814.8,3814.7,19.14252741]
[1760260190549,0.1304,3814.8,3814.7,19.61062741]
[1760260190848,0.1304,3814.8,3814.7,2.02110846]
[1760260191001,0.1304,3814.8,3814.3,3.08977178]
[1760260191205,0.1304,3814.8,3814.5,2.62157556]
[1760260191526,0.1304,3814.8,3814.7,2.62143812]
[1760260191943,0.1304,3815.1,3815.0,2.62117627]
[1760260192255,0.461,3816.4,3815.0,0.4681]
[1760260192435,0.1304,3815.6,3815.1,0.30894392]
[1760260192604,0.1304,3815.6,3815.2,0.4681]
[1760260192799,0.1304,3815.6,3815.1,2.93008876]
[1760260192800,0.1304,3815.6,3815.3,0.4681]
[1760260193034,0.1304,3815.6,3815.1,2.93008876]
[1760260193035,0.1304,3815.6,3815.2,2.62108982]
[1760260193255,0.1304,3815.6,3815.4,0.4681]
[1760260193605,0.1304,3815.6,3815.3,1.74300337]
[1760260195014,0.1304,3815.6,3815.4,0.4583]
[1760260195535,0.1304,3815.6,3815.5,0.4583]
[1760260195838,0.1304,3815.6,3815.4,0.4583]
[1760260196034,0.1304,3815.6,3815.4,0.70932473]
[1760260196204,0.1304,3816.0,3815.4,0.25102473]
[1760260196404,0.1304,3816.0,3815.5,0.4583]
[1760260196799,0.1304,3816.0,3815.6,0.4583]
[1760260197039,0.1304,3816.0,3815.7,0.4583]
[1760260197200,0.1304,3816.0,3815.8,14.9583]
[1760260198038,0.1304,3816.0,3815.9,0.4583]
[1760260199255,0.1304,3816.3,3815.9,1.95413]
[1760260199402,0.1304,3816.3,3816.0,0.4583]
[1760260199607,0.1304,3816.3,3815.8,14.5]
[1760260200124,0.1304,3816.3,3815.9,0.4583]
[1760260201113,0.1304,3816.3,3816.0,0.4583]
[1760260201442,0.1304,3816.3,3816.1,0.6166]
[1760260202135,0.1304,3816.3,3815.8,14.9583]
[1760260202443,0.1304,3816.3,3816.0,2.62053745]
[1760260202739,0.1304,3816.3,3816.2,0.1583]
[1760260203168,0.1304,3816.3,3815.8,16.27094975]
[1760260203554,0.1304,3816.3,3815.8,18.89163044]
[1760260203752,0.1304,3816.3,3815.8,19.34993044]
[1760260203954,0.1304,3816.3,3815.9,0.4583]
[1760260204156,0.0674,3816.3,3815.9,0.4583]
[1760260204351,0.0674,3816.3,3815.8,16.27094975]
[1760260204547,0.0674,3816.3,3815.8,19.34992517]
[1760260205132,0.0674,3816.3,3815.9,2.62060581]
[1760260205332,0.0674,3816.3,3815.9,3.07890581]
[1760260205566,0.0674,3816.3,3816.0,0.4583]
[1760260206057,0.0674,3816.3,3816.1,0.4583]
[1760260206447,0.001,3816.4,3816.3,2.62033907]
[1760260206829,0.1304,3817.6,3817.0,2.61979561]
[1760260207067,2.61917401,3818.0,3817.1,0.4583]
[1760260207267,0.001,3818.5,3817.2,14.5]
[1760260207450,0.001,3818.5,3817.3,3.07795263]
[1760260207641,2.61901498,3818.3,3817.5,2.61951055]
[1760260207964,2.61901498,3818.3,3817.5,3.07781055]
[1760260208168,2.61905858,3818.2,3817.6,14.5]
[1760260208863,2.61910638,3818.1,3817.6,14.5]
[1760260209044,2.61917879,3818.0,3817.7,0.4583]
[1760260209471,2.61917879,3818.0,3817.4,0.4583]
[1760260209674,0.001,3818.5,3817.7,2.61933013]
[1760260209849,0.001,3818.5,3817.8,3.07755023]
[1760260210172,0.001,3818.5,3817.9,2.6192221]
[1760260210375,0.001,3818.5,3818.0,2.61916479]
[1760260210576,0.001,3818.5,3818.1,14.5]
[1760260211072,2.61890016,3818.4,3817.6,0.4583]
[1760260211278,2.61985206,3818.5,3817.7,2.61936121]
[1760260211772,2.61891771,3818.4,3817.8,14.5]
[1760260211961,0.001,3818.5,3817.8,14.5]
[1760260212137,2.61987437,3818.5,3817.8,14.5]
[1760260212343,2.61889796,3818.4,3817.8,14.5]
[1760260212980,0.001,3818.5,3817.9,2.61924035]
[1760260213678,0.001,3818.5,3818.0,0.4583]
[1760260214042,0.001,3818.5,3818.1,0.4583]
[1760260214572,2.61983908,3818.5,3818.2,0.6156]
[1760260214738,0.001,3818.5,3818.2,0.6156]
[1760260216075,0.001,3818.5,3818.3,0.4583]
[1760260216642,2.61988095,3818.5,3817.8,14.5]
[1760260216974,2.61988095,3818.5,3817.9,0.6156]
[1760260217179,0.1304,3818.2,3818.0,0.4583]
[1760260217478,0.1304,3818.2,3817.9,2.77651103]
[1760260217781,0.1304,3818.2,3818.1,0.4583]
[1760260220358,0.1304,3818.2,3818.1,3.07740374]
[1760260221254,0.1304,3818.2,3818.1,17.57740374]
[1760260221600,0.1304,3818.2,3818.1,14.9583]
[1760260221888,0.001,3818.5,3818.4,2.61889796]
[1760260222254,0.001,3818.5,3818.4,3.20759796]
[1760260222460,0.001,3818.5,3818.4,3.07719796]
[1760260222660,0.001,3818.5,3818.4,3.20759796]
[1760260224578,0.001,3818.5,3818.4,17.70759796]
[1760260224780,0.001,3818.5,3818.4,20.002166]
[1760260228619,0.001,3818.5,3818.4,14.5]
[1760260229075,0.001,3818.5,3818.4,17.56569796]
[1760260232409,0.001,3818.5,3818.4,18.19929796]
[1760260235124,0.001,3818.5,3818.4,20.11929796]
[1760260238721,0.001,3818.5,3818.4,20.24969796]
[1760260239027,0.001,3818.5,3818.4,22.53656338]
[1760260240539,0.001,3818.9,3818.8,3.25222365]
[1760260240836,0.001,3818.9,3818.8,19.51952312]
[1760260241011,0.001,3820.8,3820.7,2.61732143]
[1760260241217,0.001,3820.8,3820.7,17.11732143]
[1760260241521,0.001,3820.8,3820.7,19.68382388]
[1760260241930,0.001,3820.8,3820.7,20.18702388]
[1760260247342,0.001,3820.8,3820.7,19.55342388]
[1760260251919,0.001,3820.8,3820.7,19.68382388]
[1760260253332,0.001,3820.8,3820.7,17.69452143]
[1760260262067,0.001,3820.8,3820.7,22.2831887]
[1760260262382,0.001,3820.8,3820.7,22.4135887]
[1760260264368,0.001,3820.8,3820.7,17.69452143]
[1760260267069,0.001,3820.8,3820.7,20.24812143]
[1760260267265,0.001,3820.8,3820.7,22.65246187]
[1760260268773,1e-08,3821.6,3821.5,2.61677351]
[1760260269112,1e-08,3821.6,3821.5,9.25584078]
[1760260269285,1e-08,3821.6,3821.5,9.70864078]
[1760260269480,1e-08,3821.6,3821.5,10.27456317]
[1760260269678,1e-08,3821.6,3821.5,20.05934755]
[1760260271197,1e-08,3821.6,3821.5,34.37032494]
[1760260272815,1e-08,3821.6,3821.5,35.00392494]
[1760260273603,1e-08,3821.6,3821.5,20.69294755]
[1760260278921,1e-08,3821.6,3821.5,20.82334755]
[1760260281751,0.001,3824.9,3821.6,31.92]
[1760260281955,0.001,3824.9,3824.2,0.1636]
[1760260282155,0.001,3824.9,3824.2,2.77852599]
[1760260282461,0.001,3824.9,3824.2,17.73132599]
[1760260288526,0.001,3824.9,3824.2,19.65132599]
[1760260290729,1e-08,3824.9,3824.8,2.61451579]
[1760260291061,1e-08,3824.9,3824.8,5.05743262]
[1760260291261,1e-08,3824.9,3824.8,5.48803262]
[1760260291458,1e-08,3824.9,3824.8,6.12163262]
[1760260291626,1e-08,3824.9,3824.8,20.62163262]
[1760260291834,1e-08,3824.9,3824.8,20.11843262]
[1760260292272,1e-08,3824.9,3824.8,19.59551579]
[1760260296962,1e-08,3824.9,3824.5,2.61465728]
[1760260297366,1e-08,3824.9,3824.7,2.61457818]
[1760260298086,1e-08,3824.9,3824.8,3.04511579]
[1760260298654,1e-08,3824.9,3824.6,14.5]
[1760260298890,1e-08,3824.9,3824.7,2.61456076]
[1760260299074,1e-08,3824.9,3824.7,3.04516076]
[1760260299263,1e-08,3824.9,3824.8,3.04511579]
[1760260300558,1e-08,3824.9,3824.6,17.11464802]
[1760260300559,1e-08,3824.9,3824.7,2.61457445]
[1760260300763,1e-08,3824.9,3824.6,14.5]
[1760260300764,1e-08,3824.9,3824.8,2.61451579]
[1760260301994,1e-08,3824.9,3824.8,3.04511579]
[1760260302295,1e-08,3824.9,3824.8,17.54511579]
[1760260305290,1e-08,3824.9,3824.8,5.06109261]
[1760260305492,1e-08,3824.9,3824.8,3.04511579]
[1760260305694,1e-08,3824.9,3824.8,4.96511579]
[1760260305868,1e-08,3824.9,3824.8,19.46511579]
[1760260306872,1e-08,3824.9,3824.8,19.59551579]
[1760260310801,1e-08,3824.9,3824.8,20.22911579]
[1760260311006,1e-08,3824.9,3824.8,22.51349261]
[1760260311890,0.001,3825.3,3824.8,22.51349261]
[1760260311891,1e-08,3825.7,3825.6,4.53396905]
[1760260312093,1e-08,3825.7,3825.6,5.16756905]
[1760260312323,1e-08,3825.7,3825.6,5.63406905]
[1760260312621,1e-08,3825.7,3825.6,6.32380671]
[1760260312802,1e-08,3825.7,3825.6,20.82380671]
[1760260312998,1e-08,3825.7,3825.6,20.19020671]
[1760260315492,1e-08,3825.7,3825.6,20.19220671]
[1760260321846,1e-08,3825.7,3825.6,20.32260671]
[1760260327691,1e-08,3825.7,3825.6,22.26260671]
[1760260329766,1e-08,3825.7,3825.6,20.32260671]
[1760260330484,1e-08,3825.7,3825.6,19.63286905]
[1760260331579,1e-08,3825.7,3825.6,14.502]
[1760260335642,1e-08,3825.7,3825.6,0.002]
[1760260337301,3.06530073,3825.7,3825.6,0.002]
[1760260339284,2.61417405,3825.3,3825.2,0.002]
[1760260339482,9.51873894,3825.3,3825.2,0.002]
[1760260339668,9.51873894,3825.3,3824.8,0.002]
[1760260339669,2.61444743,3824.9,3824.8,0.002]
[1760260340204,3.06584743,3824.9,3824.8,0.002]
[1760260340981,7.77949092,3824.9,3824.8,0.002]
[1760260343621,0.52282665,3825.3,3824.8,0.002]
[1760260343825,0.1304,3825.0,3824.8,0.002]
[1760260344197,0.4514,3824.9,3824.8,0.002]
[1760260344579,0.1304,3825.0,3824.8,0.002]
[1760260344824,4.66925457,3824.9,3824.8,0.002]
[1760260345274,4.30581786,3824.9,3824.8,0.002]
[1760260347911,1.23997043,3824.9,3824.8,0.002]
[1760260348269,1.69137043,3824.9,3824.8,0.002]
[1760260348628,4.30581786,3824.9,3824.8,0.002]
[1760260352252,3.85441786,3824.9,3824.8,0.002]
[1760260352441,1.23997043,3824.9,3824.8,0.002]
[1760260352919,3.85441786,3824.9,3824.8,0.002]
[1760260354347,2.61528556,3825.2,3824.8,0.002]
[1760260354695,3.06584743,3824.9,3824.8,0.002]
[1760260356096,2.61444743,3824.9,3824.8,0.002]
[1760260357297,3.06584743,3824.9,3824.8,0.002]
[1760260357497,2.61444743,3824.9,3824.8,0.002]
[1760260357650,4.53571974,3824.9,3824.8,0.002]
[1760260357856,4.08431974,3824.9,3824.8,0.002]
[1760260358069,4.53571974,3824.9,3824.8,0.002]
[1760260359994,7.735102,3824.9,3824.8,0.002]
[1760260364198,8.368702,3824.9,3824.8,0.002]
[1760260364767,10.288702,3824.9,3824.8,0.002]
[1760260365096,12.58683001,3824.5,3824.4,0.002]
[1760260365454,14.95823001,3824.5,3824.4,0.002]
[1760260365796,3.24859437,3824.1,3824.0,0.002]
[1760260365994,12.58710351,3824.1,3824.0,0.002]
[1760260366359,13.03850351,3824.1,3824.0,0.002]
[1760260367360,2.61526793,3823.7,3823.6,0.002]
[1760260367589,7.2845225,3823.7,3823.6,0.002]
[1760260367780,8.74882338,3823.7,3823.6,0.002]
[1760260368594,9.38242338,3823.7,3823.6,0.002]
[1760260369126,14.05167795,3823.7,3823.6,0.002]
[1760260369421,4.07956881,3823.7,3823.6,0.002]
[1760260369586,10.66882338,3823.7,3823.6,0.002]
[1760260371526,5.99956881,3823.7,3823.6,0.002]
[1760260373626,0.4526,3824.3,3823.6,0.002]
[1760260373995,3.67728709,3824.5,3823.6,0.002]
[1760260373996,2.61517613,3823.9,3823.6,0.002]
[1760260374397,3.06777613,3823.9,3823.6,0.002]
[1760260374793,3.67728709,3824.5,3823.6,0.002]
[1760260374794,1.75728709,3824.5,3823.6,0.002]
[1760260375130,0.1304,3824.5,3824.2,2.61487876]
[1760260375499,0.1304,3824.5,3823.9,2.61513114]
[1760260375723,0.4288,3824.4,3824.0,2.61505928]
[1760260376246,0.4288,3824.4,3823.8,0.1304]
[1760260376398,2.61481411,3824.4,3823.7,2.61525938]
[1760260376595,3.18064124,3824.4,3823.7,2.61525938]
[1760260376841,0.56582713,3824.4,3823.9,2.61511641]
[1760260377732,0.56582713,3824.4,3823.8,2.61517601]
[1760260377912,0.56582713,3824.4,3823.9,2.61512133]
[1760260378113,3.04354217,3824.5,3823.9,2.61512133]
[1760260378316,0.4288,3824.5,3823.9,2.61512133]
[1760260379399,3.04355226,3824.5,3823.9,2.61512133]
[1760260380633,3.04355226,3824.5,3823.8,2.61519521]
[1760260380928,3.043543,3824.5,3823.8,2.61519521]
[1760260381440,14.45872923,3824.3,3823.7,14.5]
[1760260381737,2.61500305,3824.1,3823.6,0.1953]
[1760260381937,3.04375193,3824.2,3823.6,2.81062713]
[1760260382443,2.61456271,3824.8,3823.7,0.4357]
[1760260382731,15.2798645,3824.7,3823.6,0.1953]
[1760260382908,2.6147293,3824.5,3823.8,2.61518897]
[1760260383115,0.2341,3823.9,3823.6,0.1953]
[1760260383335,0.4288,3823.8,3823.6,0.1953]
[1760260383562,2.61526793,3823.7,3823.6,0.1953]
[1760260383853,2.85076793,3823.7,3823.6,0.002]
[1760260385757,2.42196793,3823.7,3823.6,0.002]
[1760260386556,2.85076793,3823.7,3823.6,0.002]
[1760260387828,4.77076793,3823.7,3823.6,0.002]
[1760260388067,7.87376068,3823.7,3823.6,0.002]
[1760260390975,5.16914154,3823.3,3823.2,0.002]
[1760260391177,19.62787077,3823.3,3823.2,0.002]
[1760260391383,20.05667077,3823.3,3823.2,0.002]
[1760260391590,21.85217579,3823.3,3823.2,0.002]
[1760260393585,31.20369081,3823.3,3823.2,0.002]
[1760260393785,16.74496158,3823.3,3823.2,0.002]
[1760260393964,12.06920407,3823.3,3823.2,0.002]
[1760260394662,16.74496158,3823.3,3823.2,0.002]
[1760260401698,12.86359732,3823.3,3823.2,0.002]
[1760260405269,0.6336,3823.0,3822.8,0.002]
[1760260405474,10.63956597,3822.9,3822.8,0.002]
[1760260405676,5.16968894,3822.5,3822.4,0.002]
[1760260405884,10.6398397,3822.5,3822.4,0.002]
[1760260406108,12.39322461,3822.5,3822.4,0.002]
[1760260406900,6.92307385,3822.5,3822.4,0.002]
[1760260407102,11.0676397,3822.5,3822.4,0.002]
[1760260414626,4.96388894,3822.5,3822.4,0.002]
[1760260415021,5.59748894,3822.5,3822.4,0.002]
[1760260420431,5.72788894,3822.5,3822.4,0.002]
[1760260424637,5.72788894,3822.5,3822.0,0.002]
[1760260424638,3.24996273,3822.1,3822.0,0.002]
[1760260424845,10.64011349,3822.1,3822.0,0.002]
[1760260425048,11.08881349,3822.1,3822.0,0.002]
[1760260427354,11.21921349,3822.1,3822.0,0.002]
[1760260446915,3.82906273,3822.1,3822.0,0.002]
[1760260447283,5.74906273,3822.1,3822.0,0.002]
[1760260447585,7.31599631,3822.1,3822.0,0.002]
[1760260451605,4.98506273,3822.1,3822.0,0.002]
[1760260453503,4.53636273,3822.1,3822.0,0.002]
[1760260453716,2.61629309,3822.3,3822.0,0.002]
[1760260453915,0.1304,3822.3,3822.0,0.002]
[1760260454422,0.001,3822.4,3822.1,3.23740742]
[1760260454653,0.001,3822.4,3822.1,3.83608182]
[1760260454990,0.001,3822.4,3822.1,3.37278182]
[1760260455235,0.001,3822.4,3822.2,2.61628581]
[1760260455406,0.001,3822.4,3822.2,3.07958581]
[1760260455728,0.001,3822.4,3822.2,0.4633]
[1760260457820,0.001,3822.4,3822.1,0.75642464]
[1760260457821,0.001,3822.4,3822.1,0.59862464]
[1760260458033,0.001,3822.4,3822.1,3.21498395]
[1760260458342,0.001,3822.4,3822.1,17.71498395]
[1760260458548,0.001,3822.4,3822.1,15.56192464]
[1760260458832,0.001,3822.4,3822.1,17.71498684]
[1760260459036,0.001,3822.4,3822.2,0.4633]
[1760260460235,0.001,3822.4,3822.1,17.71498684]
[1760260460630,0.001,3822.4,3822.1,18.17828684]
[1760260460931,0.001,3822.4,3822.0,0.002]
[1760260461108,0.4315,3822.4,3822.0,2.61841255]
[1760260461524,0.001,3822.4,3822.0,17.11841255]
[1760260462121,0.001,3822.4,3822.0,14.502]
[1760260462326,0.001,3822.4,3822.0,0.002]
[1760260462583,4.80530592,3822.1,3822.0,0.002]
[1760260462739,5.23580592,3822.1,3822.0,0.002]
[1760260463063,7.85216865,3822.1,3822.0,0.002]
[1760260463269,7.98256865,3822.1,3822.0,0.002]
[1760260464461,15.21107457,3822.1,3822.0,0.002]
[1760260464660,17.08030896,3822.1,3822.0,0.002]
[1760260466977,12.40540304,3822.1,3822.0,0.002]
[1760260467122,7.73049712,3822.1,3822.0,0.002]
[1760260472266,12.40540304,3822.1,3822.0,0.002]
[1760260472565,7.73049712,3822.1,3822.0,0.002]
[1760260472875,10.53616865,3822.1,3822.0,0.002]
[1760260474455,0.1304,3822.1,3822.0,0.002]
[1760260474845,2.61623546,3822.3,3822.0,0.002]
[1760260475158,3.40329927,3822.3,3822.0,0.002]
[1760260475361,3.84419927,3822.3,3822.0,0.002]
[1760260476142,3.40329927,3822.3,3822.0,0.002]
[1760260477348,0.78706381,3822.3,3822.0,0.002]
[1760260477548,0.001,3822.4,3822.1,0.4453]
[1760260477767,0.001,3822.4,3822.1,0.77386897]
[1760260477935,0.001,3822.4,3822.1,0.4453]
[1760260478478,0.001,3822.4,3822.0,0.002]
[1760260480973,0.001,3822.4,3822.0,2.61842494]
[1760260481172,0.001,3822.4,3822.1,3.06165714]
[1760260481475,0.001,3822.4,3822.1,0.4453]
[1760260481651,0.001,3822.4,3822.1,1.01332702]
[1760260482047,0.001,3822.4,3822.0,0.002]
[1760260482647,0.001,3822.4,3822.0,14.502]
[1760260487301,0.001,3822.4,3822.0,14.9674]
[1760260491529,2.61721658,3822.4,3822.0,14.502]
[1760260491899,7.29126865,3822.1,3822.0,0.002]
[1760260492220,9.10179651,3822.1,3822.0,0.002]
[1760260492426,9.54179651,3822.1,3822.0,0.002]
[1760260492642,10.32898011,3822.1,3822.0,0.002]
[1760260494643,12.24898011,3822.1,3822.0,0.002]
[1760260501049,7.57407419,3822.1,3822.0,0.002]
[1760260501252,0.7871836,3822.1,3822.0,0.002]
[1760260501453,0.1304,3822.2,3822.0,0.002]
[1760260501620,0.001,3822.4,3822.1,0.4331]
[1760260501820,0.001,3822.4,3822.0,0.002]
[1760260502054,0.001,3822.4,3822.1,0.4331]
[1760260502220,0.001,3822.4,3822.0,0.002]
[1760260502423,0.001,3822.4,3822.0,0.4351]
[1760260502637,0.001,3822.4,3822.0,0.002]
[1760260502835,2.61716742,3822.4,3822.0,0.002]
[1760260503036,0.001,3822.4,3822.0,0.002]
[1760260503251,2.61715892,3822.4,3822.0,0.002]
[1760260503658,0.001,3822.4,3822.0,0.002]
[1760260503880,2.61716857,3822.4,3822.0,0.002]
[1760260504068,4.67490592,3822.3,3822.0,0.002]
[1760260504358,2.74676273,3822.1,3822.0,0.002]
[1760260505232,3.19546273,3822.1,3822.0,0.002]
[1760260506226,0.1304,3822.1,3822.0,0.002]
[1760260506763,0.001,3822.4,3822.0,0.4351]
[1760260506968,0.001,3822.4,3822.1,0.4331]
[1760260507147,0.001,3822.4,3822.0,0.002]
[1760260508066,2.61717712,3822.4,3822.0,0.002]
[1760260508276,0.001,3822.4,3822.0,0.002]
[1760260508979,2.61717228,3822.4,3822.0,0.002]
[1760260510089,0.001,3822.4,3822.0,0.002]
[1760260511414,0.001,3822.4,3822.0,3.05152682]
[1760260511594,0.001,3822.4,3822.0,0.4351]
[1760260512584,0.001,3822.4,3822.0,14.502]
[1760260512814,0.001,3822.4,3822.1,0.5909]
[1760260513109,0.001,3822.4,3822.0,19.10496446]
[1760260513269,0.001,3822.4,3822.1,2.61635556]
[1760260513473,0.001,3822.4,3822.1,0.4331]
[1760260513681,0.001,3822.4,3822.0,16.48854912]
[1760260513885,0.001,3822.4,3822.2,2.77404502]
[1760260514105,0.001,3822.4,3822.2,0.1578]
[1760260514278,0.001,3822.4,3822.3,0.4331]
[1760260514609,0.001,3822.4,3822.3,7.72423175]
[1760260514912,0.001,3822.8,3822.7,2.61595207]
[1760260515063,0.001,3822.8,3822.7,9.73406894]
[1760260515410,0.001,3823.2,3823.1,4.53567837]
[1760260515771,0.001,3823.2,3823.1,4.96877837]
[1760260516211,0.001,3823.2,3823.1,24.24856944]
[1760260516502,0.001,3823.2,3823.1,24.14368429]
[1760260516699,0.001,3823.2,3823.1,26.49041799]
[1760260518591,0.001,3823.2,3823.1,21.81551207]
[1760260518793,0.001,3823.2,3822.7,0.52321095]
[1760260518970,3.07345172,3823.2,3822.3,2.61616705]
[1760260519171,0.4578,3823.2,3822.3,2.61616705]
[1760260519371,0.4578,3823.2,3822.6,2.61601027]
[1760260519605,3.07342636,3823.2,3822.4,14.9331]
[1760260519805,0.4578,3823.2,3822.6,2.61599812]
[1760260520009,0.001,3823.2,3822.5,4.67490592]
[1760260520207,0.001,3823.2,3822.6,1.96080059]
[1760260520506,0.001,3823.2,3822.8,2.61588255]
[1760260520802,0.001,3823.2,3822.7,2.61594683]
[1760260521406,0.001,3823.2,3822.8,2.61586542]
[1760260521703,0.001,3823.2,3822.7,0.4331]
[1760260521907,0.001,3823.2,3823.1,2.61567837]
[1760260522306,0.001,3823.2,3823.1,4.96877837]
[1760260522695,0.001,3823.2,3823.1,19.46877837]
[1760260524929,0.001,3823.2,3823.1,19.59917837]
[1760260533974,0.001,3824.0,3823.1,19.59917837]
[1760260534246,5.87783477,3826.0,3824.3,2.61485762]
[1760260534247,0.4629,3825.4,3824.3,2.61485762]
[1760260534545,0.4639,3825.2,3824.3,2.61485762]
[1760260534711,0.4639,3825.2,3824.3,17.58535762]
[1760260536120,0.001,3825.2,3824.3,17.58535762]
[1760260536447,0.001,3825.2,3824.3,23.05209721]
[1760260537046,0.001,3825.2,3824.3,17.58535762]
[1760260537775,0.4629,3824.9,3823.8,0.4705]
[1760260537978,0.001,3825.2,3824.3,3.08535762]
[1760260539340,0.001,3825.2,3824.3,17.58535762]
[1760260541382,0.001,3825.2,3823.2,14.18884598]
[1760260541383,0.001,3825.2,3823.4,0.4705]
[1760260541676,0.001,3825.2,3824.3,2.77745762]
[1760260541845,0.001,3825.2,3824.3,17.27745762]
[1760260542047,0.001,3825.2,3824.3,17.70945762]
[1760260542578,0.001,3824.8,3824.3,17.70945762]
[1760260544346,0.1314,3824.8,3824.3,17.70945762]
[1760260544746,0.1314,3824.8,3824.3,3.20945762]
[1760260546387,0.1314,3824.8,3824.3,5.25493961]
[1760260546795,0.001,3824.8,3824.3,3.33985762]
[1760260550302,0.001,3824.8,3824.3,5.25985762]
[1760260552108,0.001,3824.8,3824.3,19.34383412]
[1760260552568,0.001,3824.8,3824.3,33.94867226]
[1760260552768,0.001,3825.2,3825.1,2.61431073]
[1760260552969,0.001,3825.2,3825.1,3.137181]
[1760260553292,0.001,3825.2,3825.1,5.619581]
[1760260553700,0.001,3825.2,3825.1,20.119581]
[1760260556705,0.001,3825.2,3825.1,20.753181]
[1760260557308,0.001,3825.2,3825.1,20.119581]
[1760260557510,0.001,3825.2,3825.1,25.57774307]
[1760260557717,0.001,3825.2,3825.1,19.59671073]
[1760260561403,0.001,3825.2,3825.1,5.09671073]
[1760260561918,0.001,3825.2,3825.1,19.59671073]
[1760260567295,0.001,3825.2,3825.1,20.23031073]
[1760260567492,0.001,3825.2,3825.1,20.33511701]
[1760260567809,0.001,3825.2,3825.1,22.93032884]
[1760260568015,0.001,3826.1,3826.0,4.53369576]
[1760260568016,1e-08,3826.1,3826.0,4.53369576]
[1760260568217,1e-08,3826.1,3826.0,18.61041445]
[1760260568418,1e-08,3826.1,3826.0,19.69011445]
[1760260568615,1e-08,3826.1,3826.0,21.92050402]
[1760260568823,1e-08,3826.1,3826.0,36.52529026]
[1760260572603,0.2281,3829.8,3826.0,36.52529026]
[1760260572604,0.4543,3829.7,3826.9,19.24339977]
[1760260572799,0.2281,3829.8,3826.9,19.24339977]
[1760260573018,0.4543,3829.0,3826.9,19.68949977]
[1760260573427,0.4543,3829.0,3826.9,34.41759977]
[1760260573600,0.4543,3829.0,3826.9,34.85297827]
[1760260574098,0.4543,3829.3,3826.9,34.85297827]
[1760260574296,3.06575978,3829.3,3826.9,34.85297827]
[1760260574503,0.4543,3828.9,3826.9,34.85297827]
[1760260574715,2.61187154,3828.7,3826.9,20.14265958]
[1760260574912,0.4543,3828.4,3826.9,20.14265958]
[1760260575140,3.06616692,3828.7,3826.9,20.14265958]
[1760260575559,3.02089819,3829.6,3826.9,34.21937827]
[1760260575747,0.4543,3828.9,3826.9,34.21937827]
[1760260575950,2.61179876,3828.8,3826.9,34.21937827]
[1760260576548,2.61186416,3828.7,3826.9,33.99127827]
[1760260576855,2.61192676,3828.6,3826.9,33.99127827]